fUSD/lending_fUSD_20241009
["ID","MTS","AMOUNT","RATE_DAILY","PERIOD"]
[340089093,1728502237933,-3808.5079,0.000107,2]
[340089094,1728502237944,-500.0,0.00010773,2]
[340089095,1728502237953,-500.0,0.00010773,2]
[340089096,1728502237962,-6063.99,0.00010773,2]
[340089097,1728502237972,-499.99,0.00010773,2]
[340089098,1728502237981,-2482.0,0.00010781,2]
[340089099,1728502237992,-14929.69695138,0.000108,2]
[340089100,1728502238005,-795.2682055,0.000108,2]
[340089101,1728502238018,-53.48734312,0.000108,2]
[340089102,1728502238030,-953.89563126,0.000108,2]
[340089103,1728502238041,-3487.44358524,0.000108,2]
[340089104,1728502238053,-534.02114835,0.000108,2]
[340089105,1728502238064,-5799.59233515,0.000108,2]
[340089106,1728502238073,-5713.40766485,0.000108,2]
[340089107,1728502238084,-12608.96321469,0.000108,2]
[340089108,1728502238095,-44342.80181209,0.000108,2]
[340089109,1728502238105,-8821.49536699,0.000108,2]
[340089110,1728502238116,-729.17517403,0.000108,2]
[340089111,1728502238126,-475.82133345,0.000108,2]
[340089112,1728502238139,-27308.3354339,0.000108,2]
[340089113,1728502238147,-1642.176453,0.000108,2]
[340089115,1728502238159,-10658.58718106,0.000108,2]
[340089117,1728502238170,-283.55847122,0.000108,2]
[340089119,1728502238180,-424.88308538,0.000108,2]
[340089121,1728502238191,-363.60613795,0.000108,2]
[340089124,1728502238202,-313.58631767,0.000108,2]
[340089126,1728502238213,-6821.84844121,0.000108,2]
[340089128,1728502238224,-1949.9771701,0.000108,2]
[340089130,1728502238235,-1662.12038026,0.000108,2]
[340089132,1728502238245,-2918.74407373,0.000108,2]
[340089134,1728502238256,-1292.15771084,0.000108,2]
[340089136,1728502238267,-2024.06082441,0.000108,2]
[340089138,1728502238278,-6724.42815317,0.000108,2]
[340089140,1728502238286,-12402.65464605,0.000108,2]
[340089142,1728502238297,-9476.14118342,0.000108,2]
[340089144,1728502238307,-399.35491428,0.000108,2]
[340089146,1728502238318,-69206.29164798,0.000108,2]
[340089148,1728502238328,-819.98569266,0.000108,2]
[340089150,1728502238339,-2279.43368562,0.000108,2]
[340089252,1728502239777,-1273.73772745,0.000108,2]
[340089254,1728502239788,-300.0,0.000108,2]
[340089256,1728502239799,-21024.58440346,0.000108,2]
[340089258,1728502239810,-1618.86926637,0.000108,2]
[340089261,1728502239822,-1060.86500547,0.000108,2]
[340089263,1728502239832,-560.58454009,0.000108,2]
[340089266,1728502239844,-12277.84948,0.000108,2]
[340089268,1728502239854,-588.950825,0.000108,2]
[340089270,1728502239865,-266.27,0.000108,2]
[340089272,1728502239875,-5307.9,0.000108,2]
[340089274,1728502239887,-711.24,0.000108,2]
[340089285,1728502239981,-105425.28698215,0.000108,2]
[340089287,1728502239990,-1000.0,0.000108,2]
[340089289,1728502239999,-5011.63,0.000108,2]
[340089290,1728502240008,-150.0,0.00010878,2]
[340089292,1728502240017,-151.58298,0.0001089,2]
[340089309,1728502240158,-3152.80460196,0.00010899,2]
[340089311,1728502240168,-10274.424411,0.000109,2]
[340089312,1728502240176,-158.77516356,0.000109,2]
[340089314,1728502240186,-190.20770626,0.000109,2]
[340089316,1728502240195,-172.93282298,0.000109,2]
[340089317,1728502240204,-501.48945397,0.000109,2]
[340089318,1728502240213,-501.48945394,0.000109,2]
[340089319,1728502240222,-501.48945394,0.000109,2]
[340089320,1728502240231,-501.48945394,0.000109,2]
[340089321,1728502240240,-501.48945394,0.000109,2]
[340089322,1728502240248,-501.48945394,0.000109,2]
[340089323,1728502240257,-501.48945394,0.000109,2]
[340089324,1728502240266,-501.48945394,0.000109,2]
[340089325,1728502240275,-389.789599,0.000109,2]
[340089327,1728502240284,-1746.46157693,0.000109,2]
[340089329,1728502240293,-220.36869123,0.000109,2]
[340089331,1728502240302,-23382.70969081,0.000109,2]
[340089333,1728502240311,-167.78712929,0.00010939,2]
[340089335,1728502240320,-269.772,0.00010943,2]
[340089337,1728502240329,-1000.0,0.00010945,2]
[340089339,1728502240338,-468.5016,0.00010945,2]
[340089341,1728502240347,-500.0,0.00010958,2]
[340089343,1728502240357,-500.0,0.00010958,2]
[340089345,1728502240366,-500.0,0.00010958,2]
[340089347,1728502240376,-500.0,0.00010958,2]
[340089349,1728502240390,-500.0,0.00010958,2]
[340089351,1728502240401,-500.0,0.00010958,2]
[340089353,1728502240410,-500.0,0.00010958,2]
[340089354,1728502240419,-500.0,0.00010958,2]
[340089356,1728502240428,-500.0,0.00010958,2]
[340089358,1728502240437,-500.0,0.00010958,2]
[340089360,1728502240447,-599.00026016,0.00010958,2]
[340089362,1728502240457,-500.0,0.00010958,2]
[340089364,1728502240466,-500.0,0.00010958,2]
[340089366,1728502240475,-500.0,0.00010958,2]
[340089368,1728502240484,-500.0,0.00010958,2]
[340089370,1728502240494,-357.56774909,0.00010958,2]
[340089372,1728502240503,-621.39,0.00010959,2]
[340089374,1728502240512,-156.98,0.00010959,2]
[340089376,1728502240521,-150.0,0.00010959,2]
[340089378,1728502240530,-500.0,0.00010959,2]
[340089380,1728502240539,-250.0,0.00010959,2]
[340089382,1728502240549,-657.85,0.00010959,2]
[340089384,1728502240559,-151.86385329,0.00010973,2]
[340089386,1728502240567,-206.74981516,0.00010991,2]
[340089388,1728502240577,-491.25554426,0.00010993,2]
[340089390,1728502240586,-7867.1728036,0.00010994,2]
[340089392,1728502240595,-118481.7676559,0.00010994,2]
[340089394,1728502240606,-17138.5776692,0.00010994,2]
[340089396,1728502240615,-5951.06425234,0.00010999,2]
[340089398,1728502240624,-545.0,0.00011,2]
[340089400,1728502240634,-568552.00280503,0.00011,2]
[340089402,1728502240645,-616649.50163431,0.00011,2]
[340089404,1728502240654,-3221250.70839734,0.00011,2]
[340089406,1728502240667,-328.47396994,0.00011,2]
[340089408,1728502240678,-609.16,0.00011,2]
[340089410,1728502240689,-432.31164817,0.00011,2]
[340089413,1728502240702,-91132.92550034,0.00011,2]
[340089415,1728502240713,-2080.25724065,0.00011,2]
[340089417,1728502240726,-93949.24311446,0.00011,2]
[340089419,1728502240741,-611.08,0.00011,2]
[340089422,1728502240753,-270.59,0.00011,2]
[340089424,1728502240764,-5058.0394192,0.00011,2]
[340089426,1728502240776,-4130.24694756,0.00011,2]
[340089428,1728502240787,-493.11392509,0.00011,2]
[340089430,1728502240799,-2417.52760985,0.00011,2]
[340089433,1728502240811,-2926.94188632,0.00011,2]
[340089472,1728502243011,-205.47280902,0.000109,2]
[340089474,1728502243020,-17370.91674761,0.00011,2]
[340089476,1728502243032,-788.34491592,0.00011,2]
[340089478,1728502243043,-268.02886842,0.00011,2]
[340089480,1728502243054,-52360.90027039,0.00011,2]
[340089483,1728502243066,-334.57153769,0.00011,2]
[340089485,1728502243077,-3101.3335183,0.00011,2]
[340089487,1728502243089,-1220.0,0.00011,2]
[340089499,1728502243203,-4277.52798,0.00011,2]
[340089562,1728502245771,-3390.33831613,0.00011,2]
[340089563,1728502245807,-26494.44735548,0.00011,2]
[340089564,1728502245818,-22094.47299454,0.00011,2]
[340089565,1728502245926,-23122.46325609,0.00011,2]
[340089566,1728502245938,-7443.57224391,0.00011,2]
[340089567,1728502245962,-11790.62333814,0.00011,2]
[340089568,1728502245973,-6111.48528,0.00011,2]
[340089569,1728502245995,-3050.39093772,0.00011,2]
[340089570,1728502246006,-1524.71428,0.00011,2]
[340089571,1728502246027,-916.57244142,0.00011,2]
[340089572,1728502246038,-1526.962912,0.00011,2]
[340089573,1728502494826,281.23,0.00010037,2]
[340089574,1728502523874,720.17,8.219e-05,2]
[340089575,1728502524126,447.75,0.00010044,2]
[340089576,1728502686001,207.18,0.00010008,2]
[340089577,1728502697594,609.6,0.00010008,2]
[340089578,1728502794291,181.63,9.979e-05,2]
[340089579,1728502894363,624.42,0.00010083,2]
[340089580,1728503065251,699.93,8.219e-05,2]
[340089581,1728503109224,250.0,0.00010024,2]
[340089583,1728503242384,299.56,0.00010112,2]
[340089584,1728503316486,-699.93,0.00010479,2]
[340089585,1728503316526,-180.64,0.00010572,2]
[340089586,1728503316566,-196.9,0.00010581,2]
[340089587,1728503316605,-300.0,0.00010699,2]
[340089588,1728503316645,-13391.4579,0.000107,2]
[340089589,1728503316685,-50000.0,0.000107,2]
[340089590,1728503316726,-1000.0,0.00010837,2]
[340089591,1728503316765,-500.0,0.00010873,2]
[340089592,1728503316803,-500.0,0.00010873,2]
[340089593,1728503316843,-500.0,0.00010873,2]
[340089594,1728503316883,-150.0,0.00010898,2]
[340089595,1728503317035,-10697.19946972,0.00010899,2]
[340089596,1728503317077,-10697.19946968,0.00010899,2]
[340089597,1728503317118,-10697.19946968,0.00010899,2]
[340089598,1728503317162,-10697.19946968,0.00010899,2]
[340089599,1728503317201,-10697.19946968,0.00010899,2]
[340089600,1728503317241,-10697.19946968,0.00010899,2]
[340089601,1728503317281,-10697.19946968,0.00010899,2]
[340089602,1728503317321,-10697.19946968,0.00010899,2]
[340089603,1728503317360,-66645.1451,0.000109,2]
[340089604,1728503317397,-1000.0,0.000109,2]
[340089605,1728503317435,-158.77516356,0.000109,2]
[340089606,1728503317473,-172.06224844,0.000109,2]
[340089607,1728503317512,-380.41541252,0.000109,2]
[340089608,1728503317550,-1402.0,0.000109,2]
[340089609,1728503317588,-12189.35891565,0.000109,2]
[340089610,1728503317626,-168.28273339,0.000109,2]
[340089611,1728503317664,-1696.56135563,0.000109,2]
[340089612,1728503317703,-410.945618,0.000109,2]
[340089613,1728503317743,-10697.19946968,0.00010905,2]
[340089614,1728503317783,-2602.93,0.00010906,2]
[340089615,1728503317822,-499.99,0.00010906,2]
[340089616,1728503317864,-10697.19946968,0.00010917,2]
[340089617,1728503317917,-215.817,0.00010946,2]
[340089618,1728503317972,-160.68,0.00010959,2]
[340089619,1728503318035,-160.97,0.00010959,2]
[340089620,1728503318090,-497.11,0.00010959,2]
[340089621,1728503318142,-250.0,0.00010959,2]
[340089622,1728503318199,-200.0,0.00010983,2]
[340089623,1728503318258,-8629.5030853,0.00010994,2]
[340089624,1728503318307,-5951.06425234,0.00010999,2]
[340089625,1728503318360,-574.22650357,0.00010999,2]
[340089626,1728503318411,-500.0,0.00010999,2]
[340089627,1728503318463,-500.0,0.00010999,2]
[340089628,1728503318517,-500.0,0.00010999,2]
[340089629,1728503318566,-508.81631282,0.00010999,2]
[340089630,1728503318615,-548.0,0.00011,2]
[340089631,1728503318669,-2455199.94851215,0.00011,2]
[340089632,1728503318721,-137589.20640917,0.00011,2]
[340089633,1728503318775,-1326297.26878062,0.00011,2]
[340089648,1728503431835,-394.272155,0.00010845,2]
[340089649,1728503431845,-848.45639225,0.000109,2]
[340089650,1728503431856,-183.03295899,0.000109,2]
[340089651,1728503431895,-849.36959246,0.000109,2]
[340089652,1728503431906,-1870.11428597,0.000109,2]
[340089653,1728503431916,-164.38861933,0.000109,2]
[340089654,1728503431926,-50.2720947,0.000109,2]
[340089655,1728503431942,-598.29818624,0.000109,2]
[340089656,1728503431953,-170.37,0.00010959,2]
[340089657,1728503431962,-289.69222678,0.00010973,2]
[340089658,1728503432114,-636.92138698,0.00010994,2]
[340089659,1728503432130,-1303.27384699,0.00010994,2]
[340089660,1728503432143,-3214.54334119,0.00010994,2]
[340089662,1728503432154,-20460.77923751,0.00010994,2]
[340089664,1728503432169,-5835.76515103,0.00010994,2]
[340089666,1728503432178,-10017.54055703,0.00010994,2]
[340089669,1728503432194,-663.67270921,0.00010994,2]
[340089671,1728503432207,-898.95103606,0.00010994,2]
[340089672,1728503432223,-10932.647646,0.00010994,2]
[340089673,1728503432234,-6236.81216735,0.00010994,2]
[340089674,1728503432245,-4592.22575356,0.00010994,2]
[340089675,1728503432257,-563.10986677,0.00010994,2]
[340089676,1728503432269,-1837.68576623,0.00010994,2]
[340089677,1728503432283,-608.34396347,0.00010994,2]
[340089688,1728503437930,-1300.0,0.000109,2]
[340089689,1728503438097,-32604.32286499,0.000109,2]
[340089690,1728503438109,-1632.705,0.000109,2]
[340089691,1728503438122,-14462.97213501,0.000109,2]
[340089692,1728503438131,-196211.84739882,0.00010994,2]
[340089693,1728503438142,-1425.22087068,0.00010997,2]
[340089694,1728503438151,-223.20181254,0.00010999,2]
[340089695,1728503438160,-227708.56428077,0.00011,2]
[340089696,1728503438171,-299.25,0.00011,2]
[340089697,1728503438183,-606.88405106,0.00011,2]
[340089702,1728503438418,-14252.32166735,0.00011,2]
[340089704,1728503438430,-19489.86899283,0.00011,2]
[340089735,1728503439975,-707.12336694,0.00011,2]
[340089736,1728503439987,-13256.87732019,0.00011,2]
[340089737,1728503439998,-5339.53967571,0.00011,2]
[340089738,1728503440087,-61205.80739405,0.00011,2]
[340089739,1728503440147,-2675.71239492,0.00011,2]
[340089740,1728503440158,-364.85113293,0.00011,2]
[340089741,1728503440169,-315.3343428,0.00011,2]
[340089846,1728503442977,-182194.43938961,0.00011,2]
[340089849,1728503443568,-1321.6203648,0.00011,2]
[340089850,1728503443580,-30564.99999999,0.00011,2]
[340089851,1728503443591,-58622.56671649,0.00011,2]
[340089855,1728503445977,-1138.28203649,0.00011,2]
[340089856,1728503446035,-1261.11299014,0.00011,2]
[340089857,1728503446148,-3817.14583844,0.00011,2]
[340089861,1728503763949,874.38,8.52e-05,2]
[340089862,1728503846877,1331.2783601,0.00010226,2]
[340089864,1728503927417,312.21,0.00010185,2]
[340089865,1728503927763,250.0,0.00010185,2]
[340089866,1728504086523,15858.58037123,0.00010058,2]
[340089867,1728504086554,8031.41962877,0.00010058,2]
[340089868,1728504197155,500.0,9.977e-05,2]
[340089869,1728504197482,500.0,9.978e-05,2]
[340089870,1728504198308,500.0,9.978e-05,2]
[340089873,1728504282446,1000.0,0.00010012,2]
[340089874,1728504324396,250.0,0.00010013,2]
[340089875,1728504335585,165.74,0.00010032,2]
[340089876,1728504413527,847.15,8.219e-05,2]
[340089877,1728504467143,156.1,0.00010106,2]
[340089890,1728504632025,-173.0,0.00010326,2]
[340089891,1728504632034,-847.15,0.00010482,2]
[340089892,1728504632044,-300.0,0.00010699,2]
[340089893,1728504632053,-21187.84051895,0.000107,2]
[340089894,1728504632067,-3293.45198105,0.000107,2]
[340089895,1728504632077,-13276.92585879,0.00010799,2]
[340089896,1728504632088,-389.84087267,0.00010799,2]
[340089897,1728504632099,-8643.73191521,0.00010799,2]
[340089898,1728504632108,-150.0,0.00010799,2]
[340089899,1728504632118,-172.8445,0.000108,2]
[340089900,1728504632127,-5463.1087,0.000108,2]
[340089901,1728504632137,-3437.52070123,0.000108,2]
[340089902,1728504632148,-1916.07968143,0.000108,2]
[340089903,1728504632160,-4207.88817068,0.000108,2]
[340089904,1728504632222,-947.72142091,0.000108,2]
[340089905,1728504632234,-1601.38575,0.000108,2]
[340089906,1728504632245,-460.19652237,0.000108,2]
[340089907,1728504632262,-290.16336359,0.000108,2]
[340089908,1728504632273,-428.57368907,0.000108,2]
[340089909,1728504632288,-47648.76300072,0.000108,2]
[340089910,1728504632298,-250.0,0.000108,2]
[340089912,1728504632307,-501.77689152,0.00010873,2]
[340089913,1728504632316,-500.0,0.00010873,2]
[340089914,1728504632326,-306.44469223,0.00010873,2]
[340089915,1728504632335,-38760.201,0.00010894,2]
[340089916,1728504632344,-499.99,0.00010894,2]
[340089917,1728504632354,-575.21,0.00010894,2]
[340089918,1728504632363,-1000.0,0.00010894,2]
[340089919,1728504632372,-4513.4936,0.00010894,2]
[340089920,1728504632382,-151.137,0.00010894,2]
[340089921,1728504632391,-493.199,0.00010894,2]
[340089922,1728504632400,-9999.99,0.00010899,2]
[340089923,1728504632409,-2320.35,0.00010899,2]
[340089924,1728504632418,-5058.55714008,0.00010899,2]
[340089925,1728504632428,-299.99,0.00010899,2]
[340089926,1728504632437,-1758.8238,0.000109,2]
[340089927,1728504632446,-213588.91005428,0.000109,2]
[340089928,1728504632457,-382.31751455,0.000109,2]
[340089929,1728504632468,-3487.35794757,0.000109,2]
[340089930,1728504632621,-2000.0,0.000109,2]
[340089931,1728504632636,-1221.46024,0.000109,2]
[340089932,1728504632649,-401.44091038,0.000109,2]
[340089939,1728504638238,-8404.42493322,0.000109,2]
[340089940,1728504638247,-4986.3405,0.000109,2]
[340089941,1728504638256,-49624.428,0.000109,2]
[340089942,1728504638267,-3203.7251,0.000109,2]
[340089943,1728504638276,-100000.0,0.000109,2]
[340089944,1728504638285,-158.10949927,0.000109,2]
[340089945,1728504638294,-162.20449711,0.000109,2]
[340089946,1728504638303,-489.86661936,0.000109,2]
[340089947,1728504638312,-207.61965061,0.000109,2]
[340089948,1728504638321,-729.7408851,0.000109,2]
[340089949,1728504638329,-720.17959059,0.000109,2]
[340089950,1728504638338,-808.0,0.00010906,2]
[340089951,1728504638347,-1910.0,0.00010906,2]
[340089952,1728504638356,-13008.55,0.00010906,2]
[340089953,1728504638365,-150.99,0.00010906,2]
[340089954,1728504638374,-743.23,0.00010906,2]
[340089955,1728504638383,-1280.75,0.00010906,2]
[340089956,1728504638392,-150.0,0.00010911,2]
[340089957,1728504638401,-5879.0,0.00010911,2]
[340089958,1728504638410,-1157.739,0.00010911,2]
[340089959,1728504638418,-13519.0,0.00010911,2]
[340089960,1728504638428,-748.24,0.00010911,2]
[340089961,1728504638437,-167.86,0.00010946,2]
[340089962,1728504638445,-248.692,0.00010946,2]
[340089963,1728504638454,-500.0,0.00010958,2]
[340089964,1728504638464,-500.0,0.00010958,2]
[340089965,1728504638473,-424.11791238,0.00010958,2]
[340089966,1728504638482,-161.61,0.00010959,2]
[340089967,1728504638491,-250.0,0.00010959,2]
[340089968,1728504638500,-150.0,0.00010959,2]
[340089969,1728504638511,-397.68,0.00010959,2]
[340089970,1728504638520,-156.98,0.00010959,2]
[340089971,1728504638529,-263.4,0.00010959,2]
[340089972,1728504638538,-500.0,0.00010973,2]
[340089973,1728504638547,-161.46989811,0.00010973,2]
[340089974,1728504638556,-353.17532539,0.00010973,2]
[340089975,1728504638566,-159.39020912,0.0001099,2]
[340089976,1728504638575,-2344.3672009,0.00010994,2]
[340089977,1728504638584,-7295.6894298,0.00010994,2]
[340089978,1728504638593,-10587.3852614,0.00010994,2]
[340089979,1728504638602,-3563.05217679,0.00010997,2]
[340089980,1728504638612,-1000.0,0.00010999,2]
[340089981,1728504638621,-355.3096562,0.00010999,2]
[340089982,1728504638630,-214511.44555455,0.00011,2]
[340089985,1728504638656,-9859.49999366,0.00011,2]
[340089987,1728504638667,-25918.83235116,0.00011,2]
[340090064,1728504640378,-834.78611485,0.00011,2]
[340090065,1728504640390,-306.865148,0.00011,2]
[340090069,1728504643105,-1083.0,0.00010911,2]
[340090070,1728504643115,-7918.87014775,0.00011,2]
[340090071,1728504643127,-1261.31414876,0.00011,2]
[340090072,1728504643551,-0.19372628,0.00011,2]
[340090073,1728504643567,-182194.43938961,0.00011,2]
[340090074,1728504643604,-292.35005528,0.00011,2]
[340090093,1728504646123,-250.0,0.00011,2]
[340090094,1728504824432,200.0,0.00010133,2]
[340090095,1728504833011,239.64,0.00010066,2]
[340090096,1728504885146,250.0,0.00010065,2]
[340090097,1728504918965,778.92,8.219e-05,2]
[340090098,1728505247522,156.1,9.873e-05,2]
[340090099,1728505308206,182.1,7.882e-05,2]
[340090100,1728505399386,500.0,7.819e-05,2]
[340090101,1728505410501,173.0,9.853e-05,2]
[340090102,1728505432062,1000.0,9.855e-05,2]
[340090103,1728505442787,756.87,8.219e-05,2]
[340090104,1728505512009,250.0,9.853e-05,2]
[340090127,1728505832163,-756.87,0.00010468,2]
[340090128,1728505832173,-211.53895662,0.00010526,2]
[340090129,1728505832182,-6100.09497472,0.000107,2]
[340090130,1728505832224,-633.39617763,0.000107,2]
[340090131,1728505832235,-400.0,0.000107,2]
[340090132,1728505832248,-4363.30841209,0.000107,2]
[340090133,1728505832262,-793.35,0.000107,2]
[340090134,1728505832275,-737.5985368,0.000107,2]
[340090135,1728505832287,-4212.6311127,0.000107,2]
[340090136,1728505832300,-351.89855854,0.000107,2]
[340090137,1728505832317,-3213.16852752,0.000107,2]
[340090138,1728505832326,-150.0,0.00010726,2]
[340090139,1728505832336,-17097.61070999,0.00010731,2]
[340090140,1728505832347,-12379.10156961,0.00010731,2]
[340090141,1728505832357,-5221.07153573,0.00010731,2]
[340090142,1728505832368,-9401.80583293,0.00010731,2]
[340090143,1728505832380,-337.34931894,0.00010731,2]
[340090146,1728505832523,-1285.70283055,0.00010731,2]
[340090147,1728505832535,-357.46371413,0.00010731,2]
[340090149,1728505832547,-1106.0870142,0.00010731,2]
[340090151,1728505832556,-150.0,0.00010731,2]
[340090153,1728505832565,-18.24291964,0.00010732,2]
[340090155,1728505832575,-131.75708036,0.00010732,2]
[340090157,1728505832585,-2366.59063714,0.00010733,2]
[340090159,1728505832595,-533.40936286,0.00010733,2]
[340090161,1728505832605,-150.0,0.00010736,2]
[340090163,1728505832614,-150.0,0.00010736,2]
[340090164,1728505832623,-499.99,0.00010739,2]
[340090166,1728505832632,-150.0,0.00010739,2]
[340090168,1728505832640,-150.0,0.0001074,2]
[340090170,1728505832649,-1739.14551457,0.0001074,2]
[340090177,1728505832848,-2285.89488508,0.0001074,2]
[340090178,1728505832859,-983.93,0.0001074,2]
[340090179,1728505832871,-48.23960035,0.0001074,2]
[340090180,1728505832880,-150.0,0.00010741,2]
[340090181,1728505832889,-150.0,0.00010742,2]
[340090182,1728505832898,-150.0,0.00010746,2]
[340090183,1728505832907,-90.50718334,0.00010747,2]
[340090184,1728505832918,-59.49281666,0.00010747,2]
[340090185,1728505832927,-150.0,0.00010752,2]
[340090186,1728505832937,-150.0,0.00010754,2]
[340090187,1728505832947,-150.0,0.00010754,2]
[340090188,1728505832957,-150.0,0.00010756,2]
[340090189,1728505832966,-150.0,0.00010758,2]
[340090190,1728505832975,-150.0,0.00010758,2]
[340090191,1728505832985,-150.0,0.00010759,2]
[340090192,1728505832994,-150.0,0.00010759,2]
[340090193,1728505833003,-150.0,0.0001076,2]
[340090194,1728505833012,-150.0,0.00010764,2]
[340090195,1728505833021,-150.0,0.00010766,2]
[340090196,1728505833031,-150.0,0.00010766,2]
[340090197,1728505833040,-114.69027971,0.00010766,2]
[340090198,1728505833052,-35.30972029,0.00010766,2]
[340090199,1728505833061,-150.0,0.00010768,2]
[340090200,1728505833070,-150.0,0.00010768,2]
[340090201,1728505833080,-150.0,0.00010769,2]
[340090202,1728505833089,-150.0,0.00010769,2]
[340090203,1728505833098,-150.0,0.00010771,2]
[340090204,1728505833108,-500.0,0.00010773,2]
[340090205,1728505833117,-150.0,0.00010775,2]
[340090206,1728505833126,-150.0,0.00010777,2]
[340090207,1728505833136,-150.0,0.00010778,2]
[340090208,1728505833145,-150.0,0.00010779,2]
[340090209,1728505833156,-150.0,0.0001078,2]
[340090210,1728505833165,-150.0,0.00010783,2]
[340090211,1728505833175,-63.36440911,0.00010786,2]
[340090212,1728505833187,-86.63559089,0.00010786,2]
[340090213,1728505833196,-150.0,0.0001079,2]
[340090214,1728505833205,-150.0,0.00010793,2]
[340090215,1728505833219,-150.0,0.00010793,2]
[340090216,1728505833228,-213.62987105,0.00010794,2]
[340090217,1728505833239,-1266.60175907,0.00010794,2]
[340090218,1728505833251,-3952.11216265,0.00010794,2]
[340090219,1728505833262,-10402.4493057,0.00010794,2]
[340090220,1728505833290,-7249.20410153,0.00010794,2]
[340090221,1728505833300,-1704.2607,0.00010794,2]
[340090222,1728505833310,-150.0,0.00010794,2]
[340090223,1728505833319,-150.0,0.00010795,2]
[340090224,1728505833329,-150.0,0.00010797,2]
[340090225,1728505833338,-150.0,0.00010797,2]
[340090226,1728505833347,-1790.46413846,0.000108,2]
[340090227,1728505833359,-562.21440665,0.000108,2]
[340090228,1728505833370,-664.57727663,0.000108,2]
[340090229,1728505833397,-2045.75766083,0.000108,2]
[340090230,1728505833412,-1362.66661743,0.000108,2]
[340090231,1728505833422,-100000.0,0.000108,2]
[340090232,1728505833432,-1000.0,0.000108,2]
[340090233,1728505833442,-150.0,0.00010804,2]
[340090234,1728505833451,-150.0,0.00010804,2]
[340090235,1728505833462,-150.0,0.00010804,2]
[340090236,1728505833471,-150.0,0.00010807,2]
[340090237,1728505833481,-150.0,0.00010807,2]
[340090238,1728505833491,-150.0,0.00010808,2]
[340090239,1728505833501,-150.0,0.00010812,2]
[340090240,1728505833512,-150.0,0.00010813,2]
[340090241,1728505833521,-150.0,0.00010815,2]
[340090242,1728505833532,-150.0,0.00010816,2]
[340090243,1728505833541,-150.0,0.00010822,2]
[340090244,1728505833554,-150.0,0.00010822,2]
[340090245,1728505833563,-150.0,0.00010822,2]
[340090246,1728505833573,-150.0,0.00010832,2]
[340090247,1728505833582,-150.0,0.00010833,2]
[340090248,1728505833591,-150.0,0.00010834,2]
[340090249,1728505833601,-150.0,0.00010834,2]
[340090250,1728505833610,-150.0,0.00010837,2]
[340090251,1728505833620,-150.0,0.00010837,2]
[340090252,1728505833630,-150.0,0.00010839,2]
[340090253,1728505833640,-150.0,0.00010842,2]
[340090254,1728505833653,-150.0,0.00010847,2]
[340090255,1728505833663,-150.0,0.0001085,2]
[340090256,1728505833673,-150.0,0.00010853,2]
[340090257,1728505833682,-150.0,0.00010853,2]
[340090258,1728505833692,-150.0,0.00010857,2]
[340090259,1728505833702,-150.0,0.00010857,2]
[340090260,1728505833711,-150.0,0.00010858,2]
[340090261,1728505833721,-150.0,0.00010861,2]
[340090262,1728505833730,-150.0,0.00010865,2]
[340090263,1728505833740,-194.9515538,0.00010867,2]
[340090264,1728505833749,-150.0,0.00010876,2]
[340090265,1728505833759,-150.0,0.00010877,2]
[340090266,1728505833769,-150.0,0.00010877,2]
[340090267,1728505833779,-150.0,0.00010878,2]
[340090268,1728505833789,-150.0,0.00010879,2]
[340090269,1728505833798,-313914.75371472,0.0001088,2]
[340090270,1728505833810,-551.30866681,0.0001088,2]
[340090271,1728505833822,-2984.3221489,0.0001088,2]